bitfinex/quotes_BTCUSD_20250829
["timestamp","ask_amount","ask_price","bid_price","bid_amount"]
[1756436804341,0.00014345,111580.0,111570.0,1.26341524]
[1756436806283,0.00014345,111580.0,111570.0,1.11161524]
[1756436806482,0.00014345,111580.0,111570.0,1.26341524]
[1756436806889,0.00014345,111580.0,111570.0,1.11161524]
[1756436807235,0.00014345,111580.0,111570.0,1.26337524]
[1756436807652,10.00014345,111580.0,111570.0,1.64076021]
[1756436808159,10.00014345,111580.0,111570.0,1.64331021]
[1756436811527,10.00014345,111580.0,111570.0,1.64076021]
[1756436813065,9.80177211,111580.0,111570.0,1.64076021]
[1756436813435,9.80177211,111580.0,111570.0,1.64331021]
[1756436813649,9.80177211,111580.0,111570.0,1.64076021]
[1756436816432,9.80177211,111580.0,111570.0,1.64060021]
[1756436818396,9.80177211,111580.0,111570.0,1.64315021]
[1756436818605,9.80177211,111580.0,111570.0,1.11161524]
[1756436818943,9.80177211,111580.0,111570.0,1.64056021]
[1756436819139,9.80676211,111580.0,111570.0,1.64056021]
[1756436820205,9.80480211,111580.0,111570.0,1.48900021]
[1756436820413,9.80480211,111580.0,111570.0,1.26109524]
[1756436820414,9.80676211,111580.0,111570.0,1.26109524]
[1756436820616,9.93646301,111580.0,111570.0,0.65121965]
[1756436820828,9.93646301,111580.0,111570.0,0.80285965]
[1756436821080,9.55907804,111580.0,111570.0,0.84268823]
[1756436821237,9.55907804,111580.0,111570.0,0.69104823]
[1756436821437,9.55907804,111580.0,111570.0,0.86362705]
[1756436821660,9.55907804,111580.0,111570.0,0.46362705]
[1756436821887,9.55907804,111580.0,111570.0,0.46262705]
[1756436822454,9.55907804,111580.0,111570.0,0.46062705]
[1756436822886,9.55907804,111580.0,111570.0,0.46162705]
[1756436823247,9.55907804,111580.0,111570.0,0.30998705]
[1756436823626,9.55907804,111580.0,111570.0,0.46062705]
[1756436823737,9.55907804,111580.0,111570.0,0.55092337]
[1756436824946,9.55907804,111580.0,111570.0,0.55192337]
[1756436825811,9.55907804,111580.0,111570.0,0.95188337]
[1756436826408,9.56745148,111580.0,111570.0,0.95188337]
[1756436827725,9.55907804,111580.0,111570.0,0.95188337]
[1756436827929,9.56745389,111580.0,111570.0,0.95188337]
[1756436828392,9.56745389,111580.0,111570.0,1.33122834]
[1756436828543,9.56246389,111580.0,111570.0,1.33122834]
[1756436828892,9.56246389,111580.0,111570.0,0.95384337]
[1756436829093,9.55408804,111580.0,111570.0,1.67122834]
[1756436830248,9.55408804,111580.0,111570.0,1.29384337]
[1756436830485,9.55408804,111580.0,111570.0,1.67122834]
[1756436830891,9.55408804,111580.0,111570.0,1.29384337]
[1756436831055,9.55408804,111580.0,111570.0,1.67122834]
[1756436831963,8.90121285,111580.0,111570.0,2.07377834]
[1756436832166,8.68117072,111580.0,111570.0,2.33917834]
[1756436832367,8.530572,111580.0,111570.0,2.33917834]
[1756436832574,8.31299329,111580.0,111570.0,2.33917834]
[1756436832777,8.16987619,111580.0,111570.0,2.33717834]
[1756436833016,7.86368785,111580.0,111570.0,2.33717834]
[1756436833193,7.69769406,111580.0,111570.0,2.45257834]
[1756436833379,7.46639876,111580.0,111570.0,2.45257834]
[1756436833575,7.33433517,111580.0,111570.0,2.45257834]
[1756436833781,6.99055998,111580.0,111570.0,2.45257834]
[1756436834220,6.73792643,111580.0,111570.0,2.45157834]
[1756436834469,6.57548401,111580.0,111570.0,2.45157834]
[1756436834668,6.33298024,111580.0,111570.0,2.44857834]
[1756436834805,6.2576915,111580.0,111570.0,2.45457834]
[1756436835008,6.04644171,111580.0,111570.0,2.45957834]
[1756436835237,5.86657742,111580.0,111570.0,2.45957834]
[1756436835442,5.74605681,111580.0,111570.0,2.45957834]
[1756436836050,5.34220158,111580.0,111570.0,2.45957834]
[1756436836677,4.93114636,111580.0,111570.0,2.45957834]
[1756436837442,4.36420635,111580.0,111570.0,2.45957834]
[1756436837648,4.1193155,111580.0,111570.0,2.45957834]
[1756436837882,3.98665656,111580.0,111570.0,2.45957834]
[1756436838068,3.76773819,111580.0,111570.0,2.45957834]
[1756436838263,3.57676149,111580.0,111570.0,2.45957834]
[1756436838471,3.45489267,111580.0,111570.0,2.72657834]
[1756436839307,3.04649641,111580.0,111570.0,2.57497834]
[1756436839547,3.04649641,111580.0,111570.0,2.72641834]
[1756436840359,3.04649641,111580.0,111570.0,2.57497834]
[1756436840556,3.04649641,111580.0,111570.0,2.45686834]
[1756436841049,3.04649641,111580.0,111570.0,2.05542834]
[1756436841231,3.05161641,111580.0,111570.0,1.95902834]
[1756436841427,3.05161641,111580.0,111570.0,2.11042834]
[1756436841749,2.86168716,111580.0,111570.0,2.16042834]
[1756436842156,2.86168716,111580.0,111570.0,2.14942834]
[1756436842291,2.86168716,111580.0,111570.0,2.15645834]
[1756436842494,2.85656716,111580.0,111570.0,2.16045834]
[1756436842948,2.85656716,111580.0,111570.0,2.18994334]
[1756436843264,2.85656716,111580.0,111570.0,2.28438334]
[1756436843672,2.85656716,111580.0,111570.0,2.28183334]
[1756436845457,2.85656716,111580.0,111570.0,2.28438334]
[1756436845658,2.85656716,111580.0,111570.0,2.28183334]
[1756436845836,2.85656716,111580.0,111570.0,2.54883334]
[1756436846582,2.85656716,111580.0,111570.0,2.39743334]
[1756436846820,2.86168716,111580.0,111570.0,2.54680334]
[1756436847203,2.86168716,111580.0,111570.0,2.54883334]
[1756436847363,2.85656716,111580.0,111570.0,2.54883334]
[1756436847560,2.85656716,111580.0,111570.0,2.39743334]
[1756436847786,2.85656716,111580.0,111570.0,2.54879334]
[1756436849346,2.86168716,111580.0,111570.0,2.54879334]
[1756436849535,2.86168716,111580.0,111570.0,2.54672334]
[1756436850276,2.86168716,111580.0,111570.0,2.54875334]
[1756436850516,2.85656716,111580.0,111570.0,2.54875334]
[1756436851153,2.86168716,111580.0,111570.0,2.54875334]
[1756436851767,2.85656716,111580.0,111570.0,2.54875334]
[1756436852261,2.86168716,111580.0,111570.0,2.54875334]
[1756436853099,2.85656716,111580.0,111570.0,2.54875334]
[1756436854275,2.30559916,111580.0,111570.0,2.70130334]
[1756436854474,2.05290889,111580.0,111570.0,2.70130334]
[1756436854684,1.92320877,111580.0,111570.0,2.90130334]
[1756436854890,1.70916833,111580.0,111570.0,2.90130334]
[1756436855273,1.44812573,111580.0,111570.0,2.90130334]
[1756436855427,1.23635775,111580.0,111570.0,2.90130334]
[1756436855596,1.227385,111580.0,111570.0,2.89630334]
[1756436855805,0.75105627,111580.0,111570.0,2.89630334]
[1756436856183,0.45411987,111580.0,111570.0,2.89830334]
[1756436856314,0.3887193,111580.0,111570.0,2.90382334]
[1756436856517,0.37367281,111580.0,111570.0,2.90382334]
[1756436856722,0.00316,111610.0,111600.0,0.21811028]
[1756436856922,0.00316,111610.0,111600.0,0.90399157]
[1756436857113,0.00512,111610.0,111600.0,1.30399157]
[1756436858103,0.00512,111610.0,111600.0,1.33088157]
[1756436858532,0.00512,111610.0,111600.0,1.33688157]
[1756436859379,0.00512,111610.0,111600.0,1.33088157]
[1756436859718,0.00512,111610.0,111600.0,1.37492148]
[1756436859894,0.00512,111610.0,111600.0,1.37992148]
[1756436860104,0.00512,111610.0,111600.0,1.37592148]
[1756436860468,0.00512,111610.0,111600.0,1.37892148]
[1756436860840,0.00512,111610.0,111600.0,1.22764148]
[1756436860975,0.00512,111610.0,111600.0,1.37392148]
[1756436861399,0.00512,111610.0,111600.0,1.37892148]
[1756436861600,0.00071836,111630.0,111620.0,0.17917935]
[1756436861890,0.00282179,111630.0,111620.0,0.43965449]
[1756436862287,0.00598179,111630.0,111620.0,0.83965449]
[1756436862841,0.00598179,111630.0,111620.0,0.84065449]
[1756436863074,0.00598179,111630.0,111620.0,0.84265449]
[1756436863377,0.00598179,111630.0,111620.0,0.84269449]
[1756436863920,0.00598179,111630.0,111620.0,0.84265449]
[1756436864522,0.00598179,111630.0,111620.0,0.85145193]
[1756436864700,0.00598179,111630.0,111620.0,0.70021193]
[1756436864903,0.00598179,111630.0,111620.0,0.85145193]
[1756436865963,0.00598179,111630.0,111620.0,0.52103258]
[1756436866204,0.00598179,111630.0,111620.0,0.67223258]
[1756436866828,0.00598179,111630.0,111620.0,0.85141193]
[1756436867043,0.00598179,111630.0,111620.0,0.67223258]
[1756436867163,0.00598179,111630.0,111620.0,0.85141193]
[1756436873269,0.00598179,111630.0,111620.0,1.23930669]
[1756436873402,0.00086179,111630.0,111620.0,1.57930669]
[1756436873791,0.00086179,111630.0,111620.0,1.58185669]
[1756436874557,0.00086179,111630.0,111620.0,1.58085669]
[1756436874763,0.00086179,111630.0,111620.0,1.57885669]
[1756436874965,0.00086179,111630.0,111620.0,1.58085669]
[1756436875197,0.00086179,111630.0,111620.0,1.58385669]
[1756436875482,0.00086179,111630.0,111620.0,1.57463596]
[1756436876084,0.00086179,111630.0,111620.0,1.42343596]
[1756436876289,0.00086179,111630.0,111620.0,1.57459596]
[1756436876626,0.00086179,111630.0,111620.0,1.60152096]
[1756436880263,0.00086179,111630.0,111620.0,1.70152096]
[1756436881058,0.0004,111650.0,111640.0,0.5766801]
[1756436881258,0.0008779,111650.0,111640.0,0.88485642]
[1756436881459,0.0008779,111650.0,111640.0,0.88948642]
[1756436881618,0.0008779,111650.0,111640.0,1.28948642]
[1756436881824,0.0008779,111650.0,111640.0,1.30698642]
[1756436882219,0.01290836,111670.0,111660.0,0.20005399]
[1756436882428,0.01305164,111670.0,111660.0,0.43935031]
[1756436882634,0.01505164,111670.0,111660.0,0.43935031]
[1756436883060,0.01505164,111670.0,111660.0,0.83935031]
[1756436883479,0.01505164,111670.0,111660.0,0.84135031]
[1756436884168,0.01505164,111670.0,111660.0,0.88240569]
[1756436884389,0.01807164,111670.0,111660.0,0.88240569]
[1756436885074,0.01807164,111670.0,111660.0,0.70425052]
[1756436885280,0.01807164,111670.0,111660.0,0.88332569]
[1756436885677,0.01807164,111670.0,111660.0,0.70421052]
[1756436885878,0.01807164,111670.0,111660.0,0.88032569]
[1756436886078,0.01807164,111670.0,111660.0,0.88132569]
[1756436886302,0.01807164,111670.0,111660.0,0.88032569]
[1756436886777,0.01807164,111670.0,111660.0,0.88132569]
[1756436887505,0.01807164,111670.0,111660.0,0.48132569]
[1756436887935,0.01305164,111670.0,111660.0,0.48638569]
[1756436888143,0.01305164,111670.0,111660.0,1.20297972]
[1756436888639,0.01305164,111670.0,111660.0,1.46821972]
[1756436888842,1e-08,111670.0,111660.0,1.91821972]
[1756436889048,0.0004,111700.0,111690.0,0.54000588]
[1756436889263,0.0004,111700.0,111690.0,1.22645623]
[1756436889476,0.0004,111700.0,111690.0,1.23151623]
[1756436889672,0.0004,111700.0,111690.0,1.63151623]
[1756436889909,0.0004,111700.0,111690.0,1.48242323]
[1756436890125,0.0004,111700.0,111690.0,1.26761516]
[1756436890338,0.0004,111700.0,111690.0,1.64420919]
[1756436890569,0.0004,111700.0,111690.0,1.26463516]
[1756436890570,0.0024,111700.0,111690.0,1.26463516]
[1756436890801,0.00542,111700.0,111690.0,1.10979516]
[1756436890990,0.00542,111700.0,111690.0,1.26255516]
[1756436891334,0.0024,111700.0,111690.0,1.26463516]
[1756436891698,0.0024,111700.0,111690.0,1.26763516]
[1756436892000,0.0024,111700.0,111690.0,1.27363516]
[1756436892425,0.00542,111700.0,111690.0,1.27063516]
[1756436892598,0.0024,111700.0,111690.0,1.27263516]
[1756436893249,0.0024,111700.0,111690.0,1.64922919]
[1756436893458,0.0004,111700.0,111690.0,1.69304378]
[1756436893985,0.0004,111700.0,111690.0,1.31644975]
[1756436894193,0.0024,111700.0,111690.0,1.53730378]
[1756436894399,0.0024,111700.0,111690.0,1.68994378]
[1756436894861,0.0004,111700.0,111690.0,1.31334975]
[1756436895218,0.0024,111700.0,111690.0,1.31334975]
[1756436895890,0.0004,111700.0,111690.0,1.69292378]
[1756436898251,0.0004,111700.0,111690.0,1.84292378]
[1756436898587,0.0004,111700.0,111690.0,1.89292378]
[1756436899211,0.0004,111700.0,111690.0,1.73828378]
[1756436899434,0.0004,111700.0,111690.0,1.89380378]
[1756436900043,0.0004,111700.0,111690.0,1.88780378]
[1756436901353,0.0004,111700.0,111690.0,1.89280378]
[1756436901972,0.0004,111700.0,111690.0,2.14280378]
[1756436902914,0.28416486,111750.0,111730.0,0.17900295]
[1756436903116,0.29247019,111750.0,111740.0,0.22351733]
[1756436903243,0.08121949,111750.0,111740.0,0.22128]
[1756436903490,0.45781352,111750.0,111740.0,0.22128]
[1756436903699,0.63678443,111750.0,111740.0,0.06884]
[1756436903907,0.18955958,111750.0,111740.0,0.22128]
[1756436904135,0.56615361,111750.0,111740.0,0.22128]
[1756436904534,0.3871827,111750.0,111740.0,0.22128]
[1756436904733,0.56615361,111750.0,111740.0,0.06884]
[1756436904938,0.56929361,111750.0,111740.0,0.22124]
[1756436905140,0.39032528,111750.0,111740.0,0.22124]
[1756436905734,0.56929619,111750.0,111740.0,0.22124]
[1756436906107,0.56098828,111750.0,111740.0,0.22124]
[1756436906323,0.56929967,111750.0,111740.0,0.22124]
[1756436907080,0.01373473,111750.0,111740.0,0.22124]
[1756436907284,0.39032876,111750.0,111740.0,0.22124]
[1756436907449,0.3988258,111750.0,111740.0,0.22124]
[1756436907668,0.57779671,111750.0,111740.0,0.22124]
[1756436908388,0.5778018,111750.0,111740.0,0.22124]
[1756436908593,0.57780173,111750.0,111740.0,0.22124]
[1756436909979,0.01373975,111750.0,111740.0,0.22124]
[1756436910184,0.39883082,111750.0,111740.0,0.22124]
[1756436910596,0.57780173,111750.0,111740.0,0.06884]
[1756436910822,0.57780173,111750.0,111740.0,0.22104]
[1756436911059,0.57780173,111750.0,111740.0,0.06884]
[1756436911262,0.57780173,111750.0,111740.0,0.22104]
[1756436911480,0.57780173,111750.0,111740.0,0.06884]
[1756436911635,0.57780173,111750.0,111740.0,0.22104]
[1756436913549,0.57780173,111750.0,111740.0,0.06884]
[1756436913721,0.57780173,111750.0,111740.0,0.22108]
[1756436913968,0.58404781,111750.0,111740.0,0.15216]
[1756436914374,0.58405068,111750.0,111740.0,0.15216]
[1756436914737,0.58505068,111750.0,111740.0,0.15216]
[1756436915154,0.58405068,111750.0,111740.0,0.15216]
[1756436915568,0.58505068,111750.0,111740.0,0.15216]
[1756436915766,0.58505068,111750.0,111730.0,0.06884]
[1756436915954,0.567218,111740.0,111730.0,0.06884]
[1756436916160,0.57553441,111740.0,111730.0,0.22092]
[1756436916385,0.57767441,111740.0,111730.0,0.22092]
[1756436917307,0.58393839,111740.0,111730.0,0.22092]
[1756436918063,0.58497396,111740.0,111730.0,0.22092]
[1756436918476,0.58497396,111740.0,111720.0,0.04055746]
[1756436918736,0.17901897,111720.0,111710.0,0.06884]
[1756436918955,0.57247151,111720.0,111710.0,0.22088]
[1756436919283,0.57775151,111720.0,111710.0,0.06884]
[1756436919494,0.57775151,111720.0,111710.0,0.22088]
[1756436919695,0.18952044,111720.0,111710.0,0.22088]
[1756436919844,0.57461151,111720.0,111710.0,0.22088]
[1756436920258,0.57775151,111720.0,111710.0,0.22088]
[1756436920458,0.57461151,111720.0,111710.0,0.22088]
[1756436920664,0.57461151,111720.0,111710.0,0.404895]
[1756436920665,0.01050147,111720.0,111710.0,0.404895]
[1756436920907,0.39559254,111720.0,111710.0,0.22285]
[1756436921080,0.00836147,111720.0,111710.0,0.404895]
[1756436921270,0.39559254,111720.0,111710.0,0.22586]
[1756436921543,0.57461151,111720.0,111710.0,0.07081]
[1756436921664,0.57461151,111720.0,111710.0,0.22108]
[1756436921871,0.57461151,111720.0,111710.0,0.22408]
[1756436922067,0.39559254,111720.0,111710.0,0.26212889]
[1756436922273,0.57775151,111720.0,111710.0,0.26212889]
[1756436922513,0.39873254,111720.0,111710.0,0.26212889]
[1756436922739,0.39559254,111720.0,111710.0,0.26212889]
[1756436923127,0.01050147,111720.0,111710.0,0.26112889]
[1756436923332,0.39559254,111720.0,111710.0,0.26112889]
[1756436923559,0.39659254,111720.0,111710.0,0.26112889]
[1756436923921,0.39659254,111720.0,111710.0,0.26309889]
[1756436924481,0.57875151,111720.0,111710.0,0.26112889]
[1756436925059,0.57561151,111720.0,111710.0,0.26112889]
[1756436925626,0.39659254,111720.0,111710.0,0.44016389]
[1756436925838,0.39659254,111720.0,111710.0,0.44213389]
[1756436926154,0.39659254,111720.0,111710.0,0.11085889]
[1756436926312,0.39659254,111720.0,111710.0,0.26305889]
[1756436926692,0.39659254,111720.0,111710.0,0.26108889]
[1756436926897,0.39659254,111720.0,111710.0,0.26305889]
[1756436927406,0.38823107,111720.0,111710.0,0.26305889]
[1756436927598,0.39658771,111720.0,111710.0,0.26305889]
[1756436927841,0.39658771,111720.0,111710.0,0.44510389]
[1756436928208,0.38823107,111720.0,111710.0,0.29290389]
[1756436928408,0.38823107,111720.0,111710.0,0.44506389]
[1756436929425,0.38823107,111720.0,111710.0,0.26602889]
[1756436929624,0.56725004,111720.0,111710.0,0.26602889]
[1756436929822,0.56625004,111720.0,111710.0,0.11085889]
[1756436930064,0.56945004,111720.0,111710.0,0.26096889]
[1756436930224,0.56625004,111720.0,111710.0,0.26096889]
[1756436931680,0.56625004,111720.0,111710.0,0.26196889]
[1756436932034,0.56625004,111720.0,111710.0,0.06984]
[1756436932035,0.95454111,111720.0,111710.0,0.06984]
[1756436932281,0.96289277,111720.0,111710.0,0.22188]
[1756436933053,0.96289277,111720.0,111710.0,0.22088]
[1756436933483,0.96289277,111720.0,111690.0,0.06884]
[1756436933484,0.17906282,111700.0,111690.0,0.06884]
[1756436933854,0.56613389,111700.0,111690.0,0.22092]
[1756436934915,0.38707107,111700.0,111690.0,0.22092]
[1756436935116,0.00198,111700.0,111690.0,0.22617]
[1756436935239,0.38707107,111700.0,111690.0,0.22717]
[1756436935439,0.38707107,111700.0,111690.0,0.40623706]
[1756436935888,0.38707107,111700.0,111690.0,0.40723706]
[1756436936064,0.38509107,111700.0,111690.0,0.40723706]
[1756436936477,0.18225975,111710.0,111690.0,0.44749077]
[1756436936682,0.38509107,111700.0,111690.0,0.44749077]
[1756436937536,0.38509107,111700.0,111690.0,0.26842371]
[1756436937931,0.38509107,111700.0,111690.0,0.22817]
[1756436938495,0.56612209,111700.0,111690.0,0.22817]
[1756436938927,0.56612209,111700.0,111690.0,0.22705]
[1756436939339,0.56612209,111700.0,111690.0,0.06984]
[1756436939527,0.56612209,111700.0,111690.0,0.2218]
[1756436940441,0.38707107,111700.0,111690.0,0.2218]
[1756436940874,0.38707107,111700.0,111690.0,0.22391]
[1756436941071,0.38509107,111700.0,111690.0,0.40711706]
[1756436942178,0.56414209,111700.0,111690.0,0.22801]
[1756436942383,0.38707107,111700.0,111690.0,0.40707706]
[1756436942592,0.38707107,111700.0,111690.0,0.22801]
[1756436943008,0.56612209,111700.0,111690.0,0.22487]
[1756436943454,0.56932209,111700.0,111690.0,0.07084]
[1756436943702,0.56932209,111700.0,111690.0,0.22268]
[1756436944566,0.56932209,111700.0,111690.0,0.22168]
[1756436945054,1.38270948,111700.0,111690.0,0.001]
[1756436945265,0.17906706,111690.0,111680.0,0.15188]
[1756436945502,1.04272552,111690.0,111680.0,0.15188]
[1756436945710,0.27254338,111690.0,111680.0,0.15188]
[1756436945908,0.65763445,111690.0,111680.0,0.15188]
[1756436946112,1.04272552,111690.0,111680.0,0.15188]
[1756436946944,1.04472552,111690.0,111680.0,0.15188]
[1756436947153,1.13302184,111690.0,111680.0,0.15188]
[1756436947355,0.17909913,111670.0,111660.0,0.10885033]
[1756436947492,0.5661702,111670.0,111660.0,0.26348033]
[1756436947699,0.5641902,111670.0,111660.0,0.26662033]
[1756436949346,0.27951673,111690.0,111660.0,0.44573289]
[1756436949347,0.18802041,111690.0,111660.0,0.44573289]
[1756436949552,0.56417477,111680.0,111670.0,0.00223873]
[1756436949698,0.38509107,111680.0,111670.0,0.00537873]
[1756436949903,0.19000041,111690.0,111670.0,0.00537873]
[1756436949904,0.57311148,111690.0,111670.0,0.18658786]
[1756436950105,0.38509107,111690.0,111680.0,0.15582]
[1756436950310,0.38509107,111690.0,111680.0,0.15793]
[1756436950595,0.56415813,111690.0,111680.0,0.15793]
[1756436950762,0.38509107,111690.0,111680.0,0.15793]
[1756436950924,0.56414209,111700.0,111680.0,0.33701309]
[1756436951130,0.17905102,111700.0,111690.0,0.07421833]
[1756436951331,0.17905102,111700.0,111690.0,0.07632833]
[1756436951760,0.1880115,111710.0,111690.0,0.07632833]
[1756436951940,0.1880115,111710.0,111700.0,0.15582]
[1756436951941,0.18815476,111710.0,111700.0,0.15582]
[1756436952140,0.18815476,111710.0,111700.0,0.15793]
[1756436952342,0.57324583,111710.0,111700.0,0.15793]
[1756436952773,0.57522583,111710.0,111700.0,0.15793]
[1756436953198,0.57522583,111710.0,111700.0,0.15264]
[1756436953400,0.57842583,111710.0,111700.0,0.15264]
[1756436953653,0.57722583,111710.0,111700.0,0.15364]
[1756436954064,0.57522583,111710.0,111700.0,0.15364]
[1756436954289,0.19013476,111710.0,111700.0,0.15575]
[1756436954495,0.57522583,111710.0,111700.0,0.15889]
[1756436955306,0.57324583,111710.0,111700.0,0.15889]
[1756436955461,0.38523433,111710.0,111700.0,0.16112813]
[1756436956100,0.38523433,111710.0,111700.0,0.34017915]
[1756436956304,0.38523433,111710.0,111700.0,0.33794102]
[1756436956749,0.38523433,111710.0,111700.0,0.15889]
[1756436956969,0.38523433,111710.0,111700.0,0.16112813]
[1756436957382,0.56624933,111710.0,111700.0,0.00848813]
[1756436957576,0.56426933,111710.0,111700.0,0.16144813]
[1756436958766,0.38523433,111710.0,111700.0,0.16144813]
[1756436958999,0.56426933,111710.0,111700.0,0.16140813]
[1756436960108,0.56426933,111710.0,111700.0,0.16136813]
[1756436960313,0.17917826,111710.0,111700.0,0.16136813]
[1756436960883,0.00014326,111710.0,111700.0,0.42871547]
[1756436961082,0.00014326,111710.0,111700.0,0.42647734]
[1756436961691,0.00014326,111710.0,111700.0,0.27359734]
[1756436962076,0.00014326,111710.0,111700.0,0.45330734]
[1756436963273,0.00014326,111710.0,111700.0,0.12145632]
[1756436963405,0.00014326,111710.0,111700.0,0.45326734]
[1756436965478,0.00014326,111710.0,111700.0,0.83835841]
[1756436965671,0.00014326,111710.0,111700.0,0.45318734]
[1756436966507,0.00014326,111710.0,111700.0,0.85921723]
[1756436966718,0.00014326,111710.0,111700.0,1.19921723]
[1756436967466,0.00014326,111710.0,111700.0,1.19821723]
[1756436967878,0.00014326,111710.0,111700.0,1.20121723]
[1756436968882,0.00014326,111710.0,111700.0,1.20321723]
[1756436969976,0.00014326,111710.0,111700.0,1.60321723]
[1756436970273,0.00014326,111710.0,111700.0,1.80321723]
[1756436970484,0.00014326,111710.0,111700.0,2.27384805]
[1756436970692,0.00014326,111710.0,111700.0,2.70893912]
[1756436970929,0.0004,111760.0,111750.0,0.17897091]
[1756436971116,0.00054326,111760.0,111750.0,0.48874723]
[1756436971378,0.00054326,111760.0,111750.0,0.49078723]
[1756436971576,0.00054326,111760.0,111750.0,0.49397723]
[1756436972440,0.00054326,111760.0,111750.0,0.34133723]
[1756436972575,0.00054326,111760.0,111750.0,0.49393723]
[1756436972771,0.00054326,111760.0,111750.0,1.08698461]
[1756436972975,0.00154326,111760.0,111750.0,1.10492461]
[1756436973271,0.00154326,111760.0,111750.0,1.26366053]
[1756436973678,0.00154326,111760.0,111750.0,1.26362053]
[1756436973883,0.00154326,111760.0,111750.0,1.3055743]
[1756436974311,0.00154326,111760.0,111750.0,1.1520543]
[1756436974513,0.00054326,111760.0,111750.0,1.3045743]
[1756436975031,0.00054326,111760.0,111750.0,1.3055743]
[1756436975437,0.00054326,111760.0,111750.0,1.68045838]
[1756436975864,0.00054326,111760.0,111750.0,1.68041838]
[1756436976069,0.00054326,111760.0,111750.0,1.68641838]
[1756436976834,0.00054326,111760.0,111750.0,1.3105343]
[1756436977038,0.00054326,111760.0,111750.0,1.68641838]
[1756436977258,0.00054326,111760.0,111750.0,1.1580543]
[1756436977483,0.00054326,111760.0,111750.0,1.3110143]
[1756436977680,0.00054326,111760.0,111750.0,1.68689838]
[1756436977937,0.00054326,111760.0,111750.0,1.3110143]
[1756436978146,0.00054326,111760.0,111750.0,1.68689838]
[1756436978351,0.00054326,111760.0,111750.0,1.68489838]
[1756436978689,0.00054326,111760.0,111750.0,1.68589838]
[1756436979150,0.00054326,111760.0,111750.0,1.68189838]
[1756436979398,0.00054326,111760.0,111750.0,1.52893838]
[1756436979634,0.00054326,111760.0,111750.0,1.68517838]
[1756436979978,0.00054326,111760.0,111750.0,1.1560543]
[1756436980352,0.00054326,111760.0,111750.0,1.68513838]
[1756436980577,0.00054326,111760.0,111750.0,1.3092543]
[1756436980782,0.00054326,111760.0,111750.0,1.53193838]
[1756436980939,0.00054326,111760.0,111750.0,1.68513838]
[1756436981140,0.00054326,111760.0,111750.0,1.68872438]
[1756436985375,0.00054326,111760.0,111750.0,1.3128403]
[1756436985576,0.00054326,111760.0,111750.0,1.68872438]
[1756436985907,0.00054326,111760.0,111750.0,1.68852438]
[1756436987017,0.00054326,111760.0,111750.0,1.3126403]
[1756436987234,0.00054326,111760.0,111750.0,1.68852438]
[1756436990000,0.16410831,111790.0,111760.0,0.19989372]
[1756436990197,0.00197,111770.0,111760.0,0.20288372]
[1756436990403,0.00197,111770.0,111760.0,0.20502372]
[1756436990580,0.00197,111770.0,111760.0,0.75786372]
[1756436990761,0.00197,111770.0,111760.0,0.78475772]
[1756436991368,0.16458565,111790.0,111770.0,0.17893781]
[1756436991369,0.17938724,111790.0,111770.0,0.17893781]
[1756436991596,0.00197,111780.0,111770.0,0.26723413]
[1756436991833,0.0102805,111780.0,111770.0,0.42003413]
[1756436992391,0.18920338,111780.0,111770.0,0.24109632]
[1756436992598,0.18420338,111780.0,111770.0,0.24309632]
[1756436993201,0.18038724,111790.0,111770.0,0.24309632]
[1756436993405,0.17892288,111780.0,111770.0,0.24608632]
[1756436993645,0.56516723,111790.0,111770.0,0.24608632]
[1756436993844,0.56416723,111790.0,111770.0,0.42502428]
[1756436994386,0.56416723,111790.0,111770.0,0.24608632]
[1756436994543,0.17892288,111780.0,111770.0,0.24608632]
[1756436994955,0.17892288,111780.0,111770.0,0.24408632]
[1756436995156,0.00147734,111790.0,111770.0,0.42616521]
[1756436995341,0.18038531,111790.0,111780.0,0.0688]
[1756436996178,0.00147734,111790.0,111780.0,0.0688]
[1756436996338,0.00147734,111790.0,111780.0,0.07616653]
[1756436996562,0.00147734,111790.0,111780.0,0.72816572]
[1756436996764,0.00047734,111790.0,111780.0,0.72592919]
[1756436996971,0.00047734,111790.0,111780.0,0.3411492]
[1756436997167,0.00047734,111790.0,111780.0,0.74686801]
[1756436997643,0.00047734,111790.0,111780.0,0.77375701]
[1756436998067,0.00147734,111790.0,111780.0,0.38897702]
[1756436998273,0.00147734,111790.0,111780.0,0.38997702]
[1756436998469,0.00047734,111790.0,111780.0,0.38897702]
[1756436998823,0.00047734,111790.0,111780.0,0.58398807]
[1756436999723,0.00047734,111790.0,111780.0,0.98398807]
[1756437000413,0.00047734,111790.0,111780.0,0.95791925]
[1756437000620,0.00047734,111790.0,111780.0,0.96304925]
[1756437005344,0.17938421,111790.0,111780.0,0.77895637]
[1756437005887,0.17938421,111790.0,111780.0,0.78194637]
[1756437006119,0.17938421,111790.0,111780.0,0.62942637]
[1756437006312,0.57253421,111790.0,111780.0,0.66373105]
[1756437006727,0.57253421,111790.0,111780.0,0.26373105]
[1756437006946,0.57253421,111790.0,111780.0,0.11125105]
[1756437007149,0.57253421,111790.0,111780.0,0.26373105]
[1756437008048,0.57253421,111790.0,111780.0,0.11125105]
[1756437008241,0.57253421,111790.0,111780.0,0.26365105]
[1756437009083,0.57253421,111790.0,111780.0,0.11125105]
[1756437009481,0.67248746,111790.0,111780.0,0.002]
[1756437009749,0.76078378,111790.0,111780.0,0.15448]
[1756437009998,0.76078378,111790.0,111780.0,0.002]
[1756437010206,1.12106371,111790.0,111780.0,0.002]
[1756437010412,1.12823053,111790.0,111780.0,0.002]
[1756437010623,1.29902905,111790.0,111780.0,0.002]
[1756437010834,1.14650905,111790.0,111780.0,0.002]
[1756437011051,0.65934963,111790.0,111780.0,0.002]
[1756437011273,1.00810334,111790.0,111780.0,0.002]
[1756437011478,1.024838,111790.0,111780.0,0.002]
[1756437011907,0.17892288,111780.0,111770.0,0.15248]
[1756437012104,0.57206792,111780.0,111770.0,0.15248]
[1756437012316,0.57834171,111780.0,111770.0,0.15248]
[1756437012958,0.19356172,111780.0,111770.0,0.15761]
[1756437013195,0.57206792,111780.0,111770.0,0.15761]
[1756437013413,0.56370287,111780.0,111770.0,0.15761]
[1756437013847,0.56370287,111780.0,111770.0,0.15248]
[1756437014277,0.17893889,111770.0,111760.0,0.14242082]
[1756437014502,0.56371888,111770.0,111760.0,0.22132]
[1756437015503,0.56371888,111770.0,111760.0,0.22232]
[1756437016703,0.56371888,111770.0,111760.0,0.22745]
[1756437016957,0.17893889,111770.0,111760.0,0.22745]
[1756437018726,0.56371888,111770.0,111760.0,0.22745]
[1756437019141,0.63798306,111770.0,111760.0,0.001]
[1756437019343,0.72627938,111770.0,111760.0,0.001]
[1756437019772,0.6520152,111770.0,111760.0,0.001]
[1756437022403,0.1789549,111760.0,111750.0,0.15244]
[1756437022552,0.56373489,111760.0,111750.0,0.15244]
[1756437023355,0.17897091,111750.0,111740.0,0.07184]